[Event "Reykjavik Open 2024"]
[Site "Reykjavik"]
[Date "2024.03.18"]
[Round "5.1"]
[White "Moussard, Jules"]
[Black "Stefansson, Vignir Vatnar"]
[Result "1-0"]
[ECO "D35"]
[WhiteElo "2621"]
[BlackElo "2464"]
[Annotator "TA"]
[PlyCount "101"]
[EventDate "2024.03.12"]
[EventCountry "ISL"]
[SourceTitle "playchess.com"]
[Source "ChessBase"]
[SourceQuality "1"]
[TimeControl "40/5400+30:1800+30"]

{[%evp 28,101,59,47,72,66,70,30,38,18,54,25,120,25,118,0,110,0,0,0,0,0,2,0,0,0,0,0,0,0,0,0,29,38,74,44,32,44,54,29,210,203,585,565,588,567,525,59,197,195,814,681,1183,1269,1122,1012,6578,935,29961,29966,29964,29969,29971,29971,29972,29973,29978,29980,29980,29977,29977,29978,29981,29982,29983,29984]} 1. c4 {[%emt 0:06:07]} e6 {[%emt 0:07:22]} 2. Nc3 {[%emt 0:00:05]} d5 {[%emt 0:00:07]} 3. d4 {[%emt 0:00:04]} Nf6 {[%emt 0:00:38]} 4. cxd5 {[%emt 0:00:14]} exd5 {[%emt 0:00:12]} 5. Bg5 {[%emt 0:00:05]} Bb4 {[%emt 0:01:29]} 6. e3 {[%emt 0:01:59]} h6 {[%emt 0:00:06]} 7. Bh4 {[%emt 0:00:54]} g5 {[%emt 0:00:20] D35: Damengambit (Abtauschvariante).} 8. Bg3 {[%emt 0:00:06]} Ne4 {[%emt 0:00:04]} 9. a3 {[%emt 0:02:05]} Bxc3+ {[%emt 0:02:02]} 10. bxc3 {[%emt 0:00:59]} c5 {[%emt 0:03:36]} 11. f3 {[%emt 0:16:08]} Nxg3 {[%emt 0:09:36]} 12. hxg3 {[%emt 0:00:07]} Qa5 $146 {[%emt 0:00:56]} ({Predecessor:} 12... Nc6 13. Bd3 Qf6 14. Ne2 Bd7 15. Rb1 Rb8 16. Qd2 cxd4 17. cxd4 O-O 18. O-O Qd6 {0-1 Kapnisis,S (2412)-Ketzetzis,G (2070) Kavala Kleisto 2008}) 13. Qd2 {[%emt 0:02:08]} Bf5 {[%emt 0:03:25]} 14. Bd3 {[%emt 0:15:59]} Be6 {[%emt 0:28:53]} 15. Ne2 {[%emt 0:08:40]} Nc6 {[%emt 0:00:49]} 16. g4 {[%emt 0:01:26]} O-O-O {[%emt 0:09:05]} 17. Kf2 {[%emt 0:00:29]} cxd4 {[%emt 0:00:45]} 18. exd4 {[%emt 0:00:02]} Kb8 {[%emt 0:01:07]} 19. Rh2 {[%emt 0:05:14]} Ne7 {[%emt 0:02:46]} (19... Rd6 $11) 20. a4 {[%emt 0:04:05]} (20. Rah1 $16) 20... Rc8 {[%emt 0:12:56]} (20... Bd7 $11) 21. Qb2 {[%emt 0:01:07]} (21. Rah1 $16) 21... f5 {[%emt 0:01:22]} (21... Rc6 $1 $11 {hält das Gleichgewicht.}) 22. Rah1 {[%emt 0:03:15]} (22. Rb1 $16 {[%csl Gb1][%cal Rb2b7]} Rc7 23. Rbh1 Qxa4 24. Rxh6 Rxh6 25. Rxh6) 22... fxg4 $11 {[%emt 0:00:16]} 23. Rxh6 {[%emt 0:00:42]} Rxh6 {[%emt 0:00:03]} 24. Rxh6 {[%emt 0:00:02]} Bf5 {[%emt 0:00:34]} 25. Bxf5 {[%emt 0:03:53]} (25. Qd2 {vereinfacht} gxf3 26. gxf3 Bxd3 27. Qxd3 Qxa4 28. Qe3) 25... Nxf5 {[%emt 0:00:04]} 26. Rh7 {[%emt 0:00:11]} Nd6 {[%emt 0:02:11]} 27. Rd7 {[%emt 0:00:08]} gxf3 {[%emt 0:00:35]} (27... Qxa4 $2 {verliert.} 28. Rxd6 gxf3 29. gxf3 $18) 28. gxf3 {[%emt 0:00:03]} Qa6 {[%emt 0:06:46]} 29. Qb4 {[%emt 0:01:27]} Rc6 {[%emt 0:00:07]} 30. Rd8+ {[%emt 0:02:12]} Kc7 {[%emt 0:00:32]} 31. Rg8 {[%emt 0:00:06]} Rc4 {[%emt 0:00:24]} 32. Qb1 {[%emt 0:00:40]} Qxa4 {[%emt 0:02:11]} 33. Rxg5 {[%emt 0:04:21]} Kc6 $2 {[%emt 0:00:06]} (33... Rc6 $11 {und Schwarz ist OK.}) 34. Qg6 $1 $18 {[%emt 0:03:20]} Qa5 $2 {[%emt 0:02:20]} (34... Kc7 {ist eine bessere Chance.} 35. Rxd5 Rc6) 35. Qe6 $18 {[%emt 0:01:43]} a6 {[%emt 0:00:21]} 36. Kg3 {[%emt 0:03:25]} Qc7 {[%emt 0:01:52] [#]} 37. Rxd5 $2 {[%emt 0:02:33]} ({Schwächer ist} 37. Qxd5+ Kb6 38. Qa5+ (38. Rg6 Rc6 $11) 38... Ka7 39. Qxc7 Rxc7 $16) (37. Rg6 $1 $18) 37... b5 {[%emt 0:00:13]} ({Vorzuziehen ist} 37... Qd7 $14 38. Qg8 Qc8) 38. Kf2 $18 {[%emt 0:02:15]} a5 $2 {[%emt 0:01:39]} (38... Qd7 39. Qe5 a5 40. Rc5+ Kb6) 39. Ng3 $18 {[%emt 0:01:14]} Qd7 {[%emt 0:01:29]} 40. Qxd7+ {[%emt 0:08:28]} Kxd7 {[%emt 0:00:04]} 41. Ne4 {[%emt 0:30:08]} Rc6 {[%emt 0:30:04]} 42. Ke2 {[%emt 0:01:48]} (42. Rxd6+ $142 Rxd6 43. Nxd6 Kxd6 44. Ke3) 42... Ke6 {[%emt 0:00:00]} 43. Rxd6+ {[%emt 0:00:00]} Rxd6 {[%emt 0:00:00]} 44. Nxd6 {[%emt 0:00:00]} Kxd6 {[%emt 0:00:00]} 45. f4 {[%emt 0:00:00]} a4 {[%emt 0:00:00]} 46. Kd3 {[%emt 0:00:00]} Kd5 {[%emt 0:00:00]} 47. f5 {[%emt 0:00:00]} Kd6 {[%emt 0:00:00]} 48. Kc2 {[%emt 0:00:00]} Kd5 {[%emt 0:00:00]} 49. Kb2 {[%emt 0:00:00]} Kc6 {[%emt 0:00:00]} 50. f6 {[%emt 0:00:00]} Kd6 {[%emt 0:00:00] [#]} 51. d5 $1 {[%emt 0:00:00]} 1-0

[Event "Reykjavik Open 2024"]
[Site "Reykjavik"]
[Date "2024.03.18"]
[Round "5.2"]
[White "Steingrimsson, Hedinn"]
[Black "Seemann, Jakub"]
[Result "1/2-1/2"]
[ECO "E36"]
[WhiteElo "2477"]
[BlackElo "2451"]
[Annotator "TA"]
[PlyCount "44"]
[EventDate "2024.03.12"]
[EventCountry "ISL"]
[SourceTitle "playchess.com"]
[Source "ChessBase"]
[SourceQuality "1"]
[TimeControl "40/5400+30:1800+30"]

{[%evp 15,44,0,2,18,14,22,15,18,31,31,29,0,0,0,0,0,0,0,0,0,0,0,0,0,0,0,-6,0,0,-6,-8]} 1. d4 {[%emt 0:07:55]} Nf6 {[%emt 0:00:11]} 2. c4 {[%emt 0:00:09]} e6 {[%emt 0:00:04]} 3. Nc3 {[%emt 0:04:09]} Bb4 {[%emt 0:00:08]} 4. Qc2 {[%emt 0:00:11]} O-O {[%emt 0:00:36]} 5. a3 {[%emt 0:00:11]} Bxc3+ {[%emt 0:00:10]} 6. Qxc3 {[%emt 0:00:02]} d5 {[%emt 0:00:13]} 7. Nf3 {[%emt 0:00:18]} dxc4 {[%emt 0:00:07]} 8. Qxc4 {[%emt 0:00:02]} b6 {[%emt 0:00:09] Black is weak on the dark squares} 9. Bg5 {[%emt 0:01:06]} Ba6 {[%emt 0:00:06]} 10. Qa4 {[%emt 0:00:13]} h6 {[%emt 0:00:07]} 11. Bh4 {[%emt 0:00:12]} c5 {[%emt 0:00:05]} 12. dxc5 {[%emt 0:00:53]} bxc5 {[%emt 0:00:06]} 13. Rc1 {[%emt 0:02:42][%cal Of3d2]} Qb6 {[%emt 0:00:37] The position is equal.} 14. Bxf6 {[%emt 0:00:09]} gxf6 {[%emt 0:00:06]} 15. Rc2 {[%emt 0:00:51]} c4 {[%emt 0:00:12] [#] White must now prevent ...Nc6.} 16. e3 {[%emt 0:12:19]} Bb5 {[%emt 0:00:49]} 17. Qb4 {[%emt 0:00:01][%cal Of3d2]} Rc8 {[%emt 0:00:19]} 18. Be2 {[%emt 0:11:56][%cal Oe1g1]} Na6 {[%emt 0:01:25]} 19. Qc3 {[%emt 0:06:46]} Ba4 {[%emt 0:00:23]} 20. Rc1 {[%emt 0:04:59]} Rab8 $1 {[%emt 0:02:37]} 21. O-O {[%emt 0:05:11]} ({Of course not} 21. Qxf6 Qxb2 22. Qxb2 Rxb2 $15) 21... Qxb2 {[%emt 0:00:10]} 22. Qxb2 {[%emt 0:00:10]} Rxb2 {[%emt 0:00:04] A rather calm draw.   Weighted Error Value: White=0.03 (flawless) /Black=0.01 (flawless) .  Inaccurate:     	White=1     	---        OK:         	White=7     	Black=6      Best:        	White=2     	Black=2      Strong:       	---       	Black=1} 1/2-1/2

[Event "Reykjavik Open 2024"]
[Site "Reykjavik"]
[Date "2024.03.18"]
[Round "5.3"]
[White "Pultinevicius, Paulius"]
[Black "Wadsworth, Matthew J"]
[Result "1/2-1/2"]
[ECO "A49"]
[WhiteElo "2575"]
[BlackElo "2450"]
[Annotator "TA"]
[PlyCount "68"]
[EventDate "2024.03.12"]
[EventCountry "ISL"]
[SourceTitle "playchess.com"]
[Source "ChessBase"]
[SourceQuality "1"]
[TimeControl "40/5400+30:1800+30"]

{[%evp 19,68,3,16,0,0,0,33,52,77,25,37,16,46,45,66,62,113,94,91,122,121,43,45,46,43,38,6,8,6,6,7,23,4,22,22,0,0,0,0,0,0,0,0,0,0,0,0,0,0,0,0]} 1. Nf3 {[%emt 0:00:03]} d5 {[%emt 0:00:46]} 2. g3 {[%emt 0:00:40]} g6 {[%emt 0:00:21]} 3. Bg2 {[%emt 0:01:48]} Bg7 {[%emt 0:00:10]} 4. d4 {[%emt 0:02:17]} Nf6 {[%emt 0:03:31]} 5. O-O {[%emt 0:00:07]} O-O {[%emt 0:00:21]} 6. c4 {[%emt 0:00:04]} c6 {[%emt 0:00:10]} 7. b3 {[%emt 0:00:26]} dxc4 {[%emt 0:02:19]} 8. bxc4 {[%emt 0:00:06]} c5 {[%emt 0:00:12]} 9. Bb2 {[%emt 0:00:06]} cxd4 {[%emt 0:01:38]} 10. Nxd4 {[%emt 0:00:10]} Qb6 {[%emt 0:00:50]} 11. Qb3 {[%emt 0:00:24][%cal Ob1c3]} Nfd7 {[%emt 0:01:47][%cal Bf6d7,Bd7c5,Bc5d3][%mdl 32]} 12. e3 {[%emt 0:03:55]} Nc5 {[%emt 0:05:58]} (12... e5 $5 13. Nc2 Nc5 $11) 13. Qa3 {[%emt 0:01:11] Weiß steht etwas besser.} e5 {[%emt 0:08:48] [#]} 14. Nb3 {[%emt 0:04:20]} (14. Nc3 $1 $16 {[%cal Rc3d5] Droht stark Nd5.} Rd8 (14... exd4 15. Nd5 $16) 15. Nb3) 14... Nd3 $11 {[%emt 0:16:04]} 15. Bc3 {[%emt 0:00:07]} Be6 {[%emt 0:03:07]} 16. N1d2 {[%emt 0:06:05]} Nc6 {[%emt 0:06:42]} 17. Rab1 {[%emt 0:01:01]} Rfd8 {[%emt 0:05:14]} ({Vorzuziehen ist} 17... Rfc8 $14) 18. Na5 $16 {[%emt 0:05:47] [#] Nxc6 ist eine echte Drohung.} Qa6 {[%emt 0:00:25]} 19. Rxb7 {[%emt 0:04:13]} e4 {[%emt 0:01:06]} 20. Bxg7 {[%emt 0:01:03]} (20. Bxe4 $2 {ist das falsche Schlagen.} Bxc3 21. Qxc3 Qxa5 $19 (21... Nxa5 22. Rbb1 $15)) (20. Rb5 $16 {Droht Bxg7 und aus.} Bf8 (20... Bxc4 $2 21. Naxc4 Qxb5 22. Bxg7 $18) 21. Qb3) 20... Qxa5 $14 {[%emt 0:04:04]} 21. Qc3 {[%emt 0:01:29] Sehr scharf!} Nc5 {[%emt 0:04:00] ...Qxc3 wäre nun fies.} 22. Rb5 {[%emt 0:03:48]} (22. Bxe4 {vereinfacht} Nxb7 23. Bxc6 Qxc3 24. Bxc3 Rab8 25. Ne4) 22... Qxc3 {[%emt 0:01:12]} 23. Bxc3 {[%emt 0:00:06] Ein starkes Läuferpaar.} Na4 $132 {[%emt 0:00:25][%mdl 2048] Schwarz hält sich nicht zurück} 24. Ba5 {[%emt 0:00:36]} ({Ein No Go ist} 24. Nxe4 Bxc4 25. Nf6+ Kh8 $17) 24... Nxa5 {[%emt 0:02:28]} 25. Rxa5 {[%emt 0:00:08]} Rxd2 {[%emt 0:01:21]} 26. Rxa4 {[%emt 0:00:08] Die Stellung ist ausgeglichen.} f5 {[%emt 0:02:11]} 27. f3 {[%emt 0:03:36]} Rb8 {[%emt 0:02:45]} 28. fxe4 {[%emt 0:00:22]} Rbb2 {[%emt 0:02:04]} 29. Bf3 {[%emt 0:00:13]} fxe4 {[%emt 0:01:01]} 30. Bxe4 {[%emt 0:00:05]} Bh3 {[%emt 0:00:39]} 31. Bd5+ {[%emt 0:02:52]} Kh8 {[%emt 0:00:16]} 32. Rc1 {[%emt 0:00:50]} Bg2 {[%emt 0:00:26]} 33. Rxa7 {[%emt 0:00:06]} Bxd5 {[%emt 0:00:12]} 34. cxd5 {[%emt 0:00:06][%cal Rc1c8]} Rg2+ {[%emt 0:00:11] Gewichteter Fehlerwert: Weiß=0.11 (sehr präzise) /Schwarz=0.08 (makellos) .  Fehler:       	Weiß=2     	Schwarz=1     Ungenau:       	---       	Schwarz=2     OK:         	Weiß=7     	Schwarz=16    Bester:       	Weiß=2     	Schwarz=2} 1/2-1/2

[Event "Reykjavik Open 2024"]
[Site "Reykjavik"]
[Date "2024.03.18"]
[Round "5.4"]
[White "Balakrishnan, Praveen"]
[Black "Sanal, Vahap"]
[Result "1/2-1/2"]
[ECO "E61"]
[WhiteElo "2490"]
[BlackElo "2558"]
[Annotator "TA"]
[PlyCount "112"]
[EventDate "2024.03.12"]
[EventCountry "ISL"]
[SourceTitle "playchess.com"]
[Source "ChessBase"]
[SourceQuality "1"]
[TimeControl "40/5400+30:1800+30"]

{[%evp 19,112,0,0,-15,11,-3,27,-1,12,6,9,0,0,0,0,0,0,0,0,0,0,0,0,0,0,0,0,0,0,0,0,0,0,-7,0,-6,0,0,20,22,20,22,26,29,22,27,30,29,22,23,30,9,20,20,20,12,17,7,8,7,7,7,7,0,7,0,0,0,8,0,0,0,0,0,0,0,0,0,0,0,0,0,0,0,0,0,0,0,0,0,0,0,8,0,0]} 1. d4 {[%emt 0:11:16]} Nf6 {[%emt 0:00:19]} 2. Bf4 {[%emt 0:00:07]} b6 {[%emt 0:01:52]} 3. e3 {[%emt 0:08:08]} Bb7 {[%emt 0:00:52]} 4. h3 {[%emt 0:03:13]} g6 {[%emt 0:02:10]} 5. Nf3 {[%emt 0:07:26]} Bg7 {[%emt 0:00:16]} 6. c4 {[%emt 0:05:47]} O-O {[%emt 0:03:58]} 7. Nc3 {[%emt 0:07:58]} d6 {[%emt 0:04:03]} 8. Be2 {[%emt 0:08:04]} Nbd7 {[%emt 0:00:13]} 9. O-O {[%emt 0:03:45]} Ne4 {[%emt 0:05:37]} 10. Nxe4 {[%emt 0:03:39]} Bxe4 {[%emt 0:08:22]} 11. Bh2 {[%emt 0:00:09]} c5 {[%emt 0:04:27]} 12. Qd2 {[%emt 0:04:27]} a6 {[%emt 0:08:48]} 13. a4 {[%emt 0:06:23] White has an edge.} Rc8 {[%emt 0:13:30]} 14. d5 {[%emt 0:03:54]} Bxf3 {[%emt 0:00:45]} 15. Bxf3 {[%emt 0:00:07]} b5 $1 {[%emt 0:06:11]} 16. axb5 {[%emt 0:05:07]} axb5 {[%emt 0:02:07]} 17. cxb5 {[%emt 0:01:06]} c4 {[%emt 0:00:10]} 18. Ra7 {[%emt 0:04:52]} Nc5 {[%emt 0:13:17]} 19. Be2 {[%emt 0:00:26]} Qb6 {[%emt 0:04:18][%csl LRa7,LRb5]} 20. Qa5 {[%emt 0:02:33]} (20. Rxe7 $2 {is the wrong capture.} Bf6 (20... Qxb5 21. Bxd6 Bxb2 22. Bxc4 $16) 21. Bxd6 Qxd6 $19) 20... Qxa5 {[%emt 0:00:10]} 21. Rxa5 {[%emt 0:00:01] Ra7 is the strong threat.} Nb3 $1 {[%emt 0:00:23]} 22. Ra2 {[%emt 0:06:01]} Bf6 {[%emt 0:10:55]} 23. Rd1 {[%emt 0:01:40]} Rc5 {[%emt 0:00:35][%cal Bc8c5,Bc5b5,Bb5b7,Bb7b4][%mdl 32]} 24. Ra4 {[%emt 0:01:07]} Rxb5 {[%emt 0:01:58]} 25. Rxc4 {[%emt 0:00:54][%cal Oh2d6]} Rb7 {[%emt 0:00:20]} 26. Rc2 {[%emt 0:00:59]} Nc5 {[%emt 0:00:49]} 27. Rb1 {[%emt 0:01:04]} Rb4 {[%emt 0:01:05]} 28. f3 {[%emt 0:02:53]} Rb3 {[%emt 0:04:16]} 29. Bc4 {[%emt 0:00:32]} Rb4 {[%emt 0:00:24]} ({Much worse is} 29... Rxe3 $6 30. Bf4 Re5 31. Bxe5 Bxe5 32. b4 $16) 30. Bg3 {[%emt 0:00:46]} Rfb8 {[%emt 0:00:46]} 31. Be1 {[%emt 0:00:27]} Rxb2 {[%emt 0:00:09]} 32. Rcxb2 {[%emt 0:00:05]} Rxb2 {[%emt 0:02:14]} 33. Rxb2 {[%emt 0:00:10]} Bxb2 $11 {[%emt 0:00:02][%mdl 4096] Endgame. KBB-KBN} 34. g4 {[%emt 0:01:29]} f5 {[%emt 0:00:45]} 35. Bb4 {[%emt 0:00:29]} Nd7 {[%emt 0:00:49] The position is equal.} 36. Kf2 {[%emt 0:00:13]} Bc1 {[%emt 0:00:31]} 37. Bc3 {[%emt 0:00:17]} f4 {[%emt 0:00:16]} 38. e4 {[%emt 0:01:06]} Be3+ {[%emt 0:00:09]} 39. Ke2 {[%emt 0:00:14]} Kf7 {[%emt 0:00:57]} 40. Bb5 {[%emt 0:00:31]} Ne5 {[%emt 0:00:33]} 41. h4 {[%emt 0:30:48]} h6 {[%emt 0:30:20]} 42. h5 {[%emt 0:00:00]} gxh5 {[%emt 0:00:00]} 43. gxh5 {[%emt 0:00:00]} Kf8 {[%emt 0:00:00]} 44. Bxe5 {[%emt 0:00:00]} dxe5 {[%emt 0:00:00] KB-KB} 45. Bd7 {[%emt 0:00:00]} Kf7 {[%emt 0:00:00]} 46. Kd3 {[%emt 0:00:00]} Bc5 {[%emt 0:00:00]} 47. Kc4 {[%emt 0:00:00]} Bd6 {[%emt 0:00:00]} 48. Kb5 {[%emt 0:00:00]} Kf8 {[%emt 0:00:00]} 49. Kc6 {[%emt 0:00:00]} Bb8 {[%emt 0:00:00]} 50. Bf5 {[%emt 0:00:00]} Bd6 {[%emt 0:00:00]} 51. Kd7 {[%emt 0:00:00]} Bb8 {[%emt 0:00:00]} 52. Ke6 {[%emt 0:00:00]} Bd6 {[%emt 0:00:00]} 53. Bg4 {[%emt 0:00:00]} Kg7 {[%emt 0:00:00]} 54. Kd7 {[%emt 0:00:00]} Kf8 {[%emt 0:00:00]} 55. Ke6 {[%emt 0:00:00]} Kg7 {[%emt 0:00:00]} 56. Kd7 {[%emt 0:00:00]} Kf8 {[%emt 0:00:03] An even fight not without its subleties.   Weighted Error Value: White=0.03 (flawless) /Black=0.03 (flawless) .  Inaccurate:     	White=1     	Black=2      OK:         	White=13    	Black=19     Best:        	---       	Black=5      Strong:       	---       	Black=2} 1/2-1/2

[Event "Reykjavik Open 2024"]
[Site "Reykjavik"]
[Date "2024.03.18"]
[Round "5.5"]
[White "Arndt, Uwe"]
[Black "Cramling Bellon, Anna"]
[Result "1/2-1/2"]
[ECO "D02"]
[WhiteElo "1951"]
[BlackElo "2115"]
[Annotator "RC"]
[PlyCount "196"]
[EventDate "2024.03.12"]
[EventCountry "ISL"]
[SourceTitle "playchess.com"]
[Source "ChessBase"]
[SourceQuality "1"]
[TimeControl "40/5400+30:1800+30"]

1. Nf3 {[%emt 0:01:09]} d5 {[%emt 0:00:24]} 2. g3 {[%emt 0:00:11]} c5 {[%emt 0:01:20]} 3. Bg2 {[%emt 0:00:13]} Nc6 {[%emt 0:00:16]} 4. d4 {[%emt 0:00:24]} cxd4 {[%emt 0:03:48]} 5. Nxd4 {[%emt 0:00:07]} e5 {[%emt 0:00:22]} 6. Nxc6 {[%emt 0:00:10]} bxc6 {[%emt 0:00:03]} 7. c4 {[%emt 0:00:38]} e4 {[%emt 0:11:01]} 8. O-O {[%emt 0:01:44]} Nf6 {[%emt 0:00:18]} 9. Bg5 {[%emt 0:01:03]} Be7 {[%emt 0:00:26]} 10. Nc3 {[%emt 0:00:49]} Be6 {[%emt 0:00:27]} 11. Qa4 {[%emt 0:07:50]} O-O {[%emt 0:03:46]} 12. Rfd1 {[%emt 0:00:40]} Qb6 {[%emt 0:32:08]} 13. cxd5 {[%emt 0:03:35]} cxd5 {[%emt 0:03:32]} 14. Bxf6 {[%emt 0:08:06]} Bxf6 {[%emt 0:00:07]} 15. Nxd5 {[%emt 0:00:17]} Bxd5 {[%emt 0:00:29]} 16. Rxd5 {[%emt 0:00:08]} Qxb2 {[%emt 0:02:06]} 17. Re1 {[%emt 0:02:30]} Bc3 {[%emt 0:09:24]} 18. Rb5 {[%emt 0:01:29]} Qd2 {[%emt 0:00:36]} 19. Rf1 {[%emt 0:07:09]} Qxe2 {[%emt 0:04:10]} 20. Bxe4 {[%emt 0:00:28]} Rad8 {[%emt 0:02:58]} 21. Rd5 {[%emt 0:10:47]} Rb8 {[%emt 0:04:33]} 22. Bd3 {[%emt 0:09:35]} Qe6 {[%emt 0:03:23]} 23. Rd7 {[%emt 0:09:24]} a5 {[%emt 0:03:05]} 24. Bc4 {[%emt 0:09:40]} Qf5 {[%emt 0:06:40]} 25. Bb3 {[%emt 0:07:01]} g6 {[%emt 0:00:53]} 26. Rc7 {[%emt 0:04:18]} Bb4 {[%emt 0:02:48]} 27. Qc6 {[%emt 0:01:16]} Rbd8 {[%emt 0:01:57]} 28. Kg2 {[%emt 0:05:05]} Rd6 {[%emt 0:01:14]} 29. Qc4 {[%emt 0:01:37]} h5 {[%emt 0:00:31]} 30. Qc2 {[%emt 0:02:52]} Qf6 {[%emt 0:00:49]} 31. Qe4 {[%emt 0:00:30]} Rd2 {[%emt 0:01:44]} 32. Rc6 {[%emt 0:01:19]} Rd6 {[%emt 0:00:19]} 33. Rxd6 {[%emt 0:00:10]} Qxd6 {[%emt 0:00:46]} 34. Rd1 {[%emt 0:00:20]} Qf6 {[%emt 0:00:18]} 35. Rd3 {[%emt 0:02:21]} Kg7 {[%emt 0:00:43]} 36. Rf3 {[%emt 0:00:12]} Qg5 {[%emt 0:00:35]} 37. h4 {[%emt 0:00:49]} Qe7 {[%emt 0:00:08]} 38. Qd4+ {[%emt 0:00:40]} Kh7 {[%emt 0:00:42]} 39. Qd5 {[%emt 0:01:26]} Kg7 {[%emt 0:00:11]} 40. Qd4+ {[%emt 0:01:38]} Kh7 {[%emt 0:00:35]} 41. Kh3 {[%emt 0:05:56]} Bc5 {[%emt 0:13:06]} 42. Qc4 {[%emt 0:03:20]} Kg7 {[%emt 0:00:45]} 43. Qc3+ {[%emt 0:00:50]} f6 {[%emt 0:10:07]} 44. Qxa5 {[%emt 0:01:43]} Rd8 {[%emt 0:05:33]} 45. Qc3 {[%emt 0:02:41]} Bd4 {[%emt 0:01:33]} 46. Qc6 {[%emt 0:01:19]} Rd6 {[%emt 0:01:40]} 47. Qc4 {[%emt 0:00:41]} Rd8 {[%emt 0:00:26]} 48. Kg2 {[%emt 0:00:18]} Be5 {[%emt 0:00:43]} 49. a4 {[%emt 0:02:24]} Kh6 {[%emt 0:00:24]} 50. Qe4 {[%emt 0:02:31]} Rd4 {[%emt 0:01:00]} 51. Qe3+ {[%emt 0:00:14]} Kg7 {[%emt 0:00:07]} 52. Bc2 {[%emt 0:01:59]} Qc7 {[%emt 0:00:14]} 53. Qb3 {[%emt 0:01:44]} Rc4 {[%emt 0:00:33]} 54. Bd3 {[%emt 0:00:51]} Rc3 {[%emt 0:00:04]} 55. Qb5 {[%emt 0:00:51]} Rc5 {[%emt 0:00:23]} 56. Qe8 {[%emt 0:00:16]} f5 {[%emt 0:00:05]} 57. Bb5 {[%emt 0:00:40]} Rd5 {[%emt 0:01:46]} 58. Re3 {[%emt 0:01:51]} Bf6 {[%emt 0:00:05]} 59. Qa8 {[%emt 0:03:33]} Rd8 {[%emt 0:00:17]} 60. Qf3 {[%emt 0:00:23]} f4 {[%emt 0:01:22]} 61. Re6 {[%emt 0:02:00]} Rd4 {[%emt 0:00:16]} 62. Rc6 {[%emt 0:02:39]} Qd8 {[%emt 0:01:48]} 63. Rc4 {[%emt 0:01:17]} fxg3 {[%emt 0:00:00]} 64. Rxd4 {[%emt 0:00:24]} Qxd4 {[%emt 0:00:00]} 65. fxg3 {[%emt 0:00:46]} Qd2+ {[%emt 0:00:00]} 66. Qf2 {[%emt 0:00:35]} Qxf2+ {[%emt 0:00:56]} 67. Kxf2 {[%emt 0:00:05]} Bc3 {[%emt 0:00:11]} 68. Be8 {[%emt 0:01:09]} Kh6 {[%emt 0:00:26]} 69. Kf3 {[%emt 0:00:09]} g5 {[%emt 0:00:11]} 70. hxg5+ {[%emt 0:01:53]} Kxg5 {[%emt 0:00:07]} 71. Bd7 {[%emt 0:00:15]} h4 {[%emt 0:00:11]} 72. g4 {[%emt 0:00:47]} Be1 {[%emt 0:00:14]} 73. Ke2 {[%emt 0:00:33]} Ba5 {[%emt 0:00:23]} 74. Kf3 {[%emt 0:00:15]} Be1 {[%emt 0:00:10]} 75. Kg2 {[%emt 0:00:16]} Ba5 {[%emt 0:00:09]} 76. Kh3 {[%emt 0:00:05]} Be1 {[%emt 0:00:09]} 77. Bb5 {[%emt 0:00:05]} Ba5 {[%emt 0:00:14]} 78. Be2 {[%emt 0:00:06]} Bb4 {[%emt 0:00:20]} 79. Kg2 {[%emt 0:01:07]} Ba5 {[%emt 0:00:34]} 80. Kf3 {[%emt 0:00:05]} Bb4 {[%emt 0:00:04]} 81. Bf1 {[%emt 0:00:10]} Ba5 {[%emt 0:00:20]} 82. Bh3 {[%emt 0:00:39]} Bb4 {[%emt 0:04:14]} 83. Ke4 {[%emt 0:00:09]} Be1 {[%emt 0:00:28]} 84. Kd3 {[%emt 0:01:27]} Kf4 {[%emt 0:00:25]} 85. Kc4 {[%emt 0:00:09]} Bd2 {[%emt 0:00:28]} 86. Kb5 {[%emt 0:00:44]} Kg3 {[%emt 0:00:30]} 87. a5 {[%emt 0:00:47]} Bxa5 {[%emt 0:00:47]} 88. Kxa5 {[%emt 0:00:16]} Kxh3 {[%emt 0:00:02]} 89. g5 {[%emt 0:00:08]} Kh2 {[%emt 0:00:03]} 90. g6 {[%emt 0:00:14]} h3 {[%emt 0:00:05]} 91. g7 {[%emt 0:00:15]} Kh1 {[%emt 0:00:03]} 92. g8=Q {[%emt 0:00:14]} h2 {[%emt 0:00:04]} 93. Qd5+ {[%emt 0:00:24]} Kg1 {[%emt 0:00:03]} 94. Qd4+ {[%emt 0:00:21]} Kg2 {[%emt 0:00:12]} 95. Qg4+ {[%emt 0:00:28]} Kh1 {[%emt 0:00:27]} 96. Qf3+ {[%emt 0:00:10]} Kg1 {[%emt 0:00:04]} 97. Qg3+ {[%emt 0:01:06]} Kh1 {[%emt 0:00:07]} 98. Qxh2+ {[%emt 0:00:58]} Kxh2 {[%emt 0:00:06]} 1/2-1/2